[Event "Early-Titled-Tuesday-Blitz-March-05-2024"]
[Site "Chess.com"]
[Date "2024.03.05"]
[Round "5"]
[White "nihalsarin"]
[Black "Eagle_2019"]
[Result "1/2-1/2"]
[WhiteElo "3182"]
[BlackElo "2874"]
[TimeControl "180+1"]
[EndTime "9:00:23 PST"]
[Termination "Game drawn - insufficient material"]

1. d4 {[%clk 0:02:59.9]} 1... d5 {[%clk 0:02:58.6]} 2. c4 {[%clk 0:02:51.3]}
2... e6 {[%clk 0:02:58.1]} 3. Nc3 {[%clk 0:02:50]} 3... Nf6 {[%clk 0:02:58]} 4.
Bg5 {[%clk 0:02:44.1]} 4... c6 {[%clk 0:02:57.1]} 5. e3 {[%clk 0:02:44.1]} 5...
Nbd7 {[%clk 0:02:55.8]} 6. f4 {[%clk 0:02:44.1]} 6... Be7 {[%clk 0:02:36.6]} 7.
Nf3 {[%clk 0:02:43.6]} 7... O-O {[%clk 0:02:36.4]} 8. Bd3 {[%clk 0:02:43.7]}
8... dxc4 {[%clk 0:02:35.8]} 9. Bxc4 {[%clk 0:02:44.6]} 9... b5 {[%clk
0:02:32.6]} 10. Bb3 {[%clk 0:02:44.7]} 10... b4 {[%clk 0:02:31.1]} 11. Ne2
{[%clk 0:02:43.2]} 11... c5 {[%clk 0:02:31.4]} 12. O-O {[%clk 0:02:42.8]} 12...
Bb7 {[%clk 0:02:31.6]} 13. Rc1 {[%clk 0:02:43]} 13... Ne4 {[%clk 0:02:27.4]} 14.
d5 {[%clk 0:02:33.2]} 14... exd5 {[%clk 0:02:20.5]} 15. Bxd5 {[%clk 0:02:33.3]}
15... Bxd5 {[%clk 0:02:18.4]} 16. Qxd5 {[%clk 0:02:34.2]} 16... Nxg5 {[%clk
0:02:17.5]} 17. fxg5 {[%clk 0:02:31.2]} 17... Nb6 {[%clk 0:02:04.3]} 18. Qe4
{[%clk 0:02:31.4]} 18... c4 {[%clk 0:01:56.3]} 19. h4 {[%clk 0:02:22.8]} 19...
Bc5 {[%clk 0:01:45.8]} 20. Ned4 {[%clk 0:02:16.2]} 20... Qe8 {[%clk 0:01:36.6]}
21. Ne5 {[%clk 0:02:06]} 21... Bd6 {[%clk 0:01:27.8]} 22. Ndc6 {[%clk
0:01:45.8]} 22... Nd7 {[%clk 0:01:21]} 23. Rf5 {[%clk 0:01:41.4]} 23... Nxe5
{[%clk 0:01:02.4]} 24. Nxe5 {[%clk 0:01:42.3]} 24... g6 {[%clk 0:01:02.4]} 25.
Qd4 {[%clk 0:01:25]} 25... Rd8 {[%clk 0:00:34.4]} 26. Ng4 {[%clk 0:01:25]} 26...
Bh2+ {[%clk 0:00:09.3]} 27. Kxh2 {[%clk 0:01:24.2]} 27... Rxd4 {[%clk
0:00:09.5]} 28. Nf6+ {[%clk 0:01:24.9]} 28... Kh8 {[%clk 0:00:08.5]} 29. Nxe8
{[%clk 0:01:25.8]} 29... Rxh4+ {[%clk 0:00:08.6]} 30. Kg3 {[%clk 0:01:26.1]}
30... gxf5 {[%clk 0:00:08.7]} 31. Kxh4 {[%clk 0:01:24.9]} 31... Rxe8 {[%clk
0:00:09]} 32. Rxc4 {[%clk 0:01:25.6]} 32... a5 {[%clk 0:00:05.8]} 33. Rc5 {[%clk
0:00:47.7]} 33... Rxe3 {[%clk 0:00:05.8]} 34. Rxa5 {[%clk 0:00:45.6]} 34... Re2
{[%clk 0:00:06.1]} 35. b3 {[%clk 0:00:38.9]} 35... Rxg2 {[%clk 0:00:06]} 36.
Rxf5 {[%clk 0:00:39.4]} 36... Rxa2 {[%clk 0:00:05.5]} 37. Rxf7 {[%clk
0:00:30.1]} 37... Rh2+ {[%clk 0:00:05.4]} 38. Kg4 {[%clk 0:00:23.4]} 38... Rb2
{[%clk 0:00:05.2]} 39. Rf3 {[%clk 0:00:20.4]} 39... Kg7 {[%clk 0:00:05.3]} 40.
Kf5 {[%clk 0:00:21.2]} 40... Rb1 {[%clk 0:00:02.8]} 41. Rd3 {[%clk 0:00:21.2]}
41... Rf1+ {[%clk 0:00:02.4]} 42. Kg4 {[%clk 0:00:21.6]} 42... Rg1+ {[%clk
0:00:02.6]} 43. Kf5 {[%clk 0:00:22]} 43... Rf1+ {[%clk 0:00:03]} 44. Ke4 {[%clk
0:00:18.6]} 44... Kg6 {[%clk 0:00:02.9]} 45. Rg3 {[%clk 0:00:18.6]} 45... Rf5
{[%clk 0:00:02.7]} 46. Rd3 {[%clk 0:00:16.1]} 46... Rxg5 {[%clk 0:00:02.9]} 47.
Rd6+ {[%clk 0:00:16.9]} 47... Kh5 {[%clk 0:00:03.2]} 48. Kf4 {[%clk 0:00:17.4]}
48... Rg4+ {[%clk 0:00:03.4]} 49. Kf3 {[%clk 0:00:18]} 49... Rg5 {[%clk
0:00:03]} 50. Rd4 {[%clk 0:00:13.8]} 50... Rf5+ {[%clk 0:00:03.2]} 51. Kg3
{[%clk 0:00:12.4]} 51... Kg5 {[%clk 0:00:03.5]} 52. Rxb4 {[%clk 0:00:11.5]}
52... h5 {[%clk 0:00:03.8]} 53. Rd4 {[%clk 0:00:08.6]} 53... Re5 {[%clk
0:00:03.8]} 54. Kf3 {[%clk 0:00:08.6]} 54... Rf5+ {[%clk 0:00:03.9]} 55. Kg3
{[%clk 0:00:08.2]} 55... Re5 {[%clk 0:00:04.2]} 56. Kf3 {[%clk 0:00:08.9]} 56...
Rf5+ {[%clk 0:00:04.3]} 57. Kg2 {[%clk 0:00:09.6]} 57... Re5 {[%clk 0:00:04.6]}
58. b4 {[%clk 0:00:10]} 58... Re2+ {[%clk 0:00:04.7]} 59. Kf3 {[%clk 0:00:10.7]}
59... Rb2 {[%clk 0:00:05.4]} 60. Rd5+ {[%clk 0:00:11.4]} 60... Kg6 {[%clk
0:00:05]} 61. b5 {[%clk 0:00:11.9]} 61... Rb4 {[%clk 0:00:05.4]} 62. Kg3 {[%clk
0:00:08.7]} 62... h4+ {[%clk 0:00:05.6]} 63. Kh3 {[%clk 0:00:09.1]} 63... Kf6
{[%clk 0:00:06]} 64. Rh5 {[%clk 0:00:09.4]} 64... Ke6 {[%clk 0:00:06.3]} 65. b6
{[%clk 0:00:08.3]} 65... Kd7 {[%clk 0:00:05.9]} 66. Rh6 {[%clk 0:00:08.2]} 66...
Kc8 {[%clk 0:00:05.9]} 67. Rf6 {[%clk 0:00:05.3]} 67... Kb7 {[%clk 0:00:06.1]}
68. Rg6 {[%clk 0:00:06]} 68... Rxb6 {[%clk 0:00:06.4]} 69. Rg7+ {[%clk
0:00:06.4]} 69... Ka6 {[%clk 0:00:06.6]} 70. Kxh4 {[%clk 0:00:07.1]} 70... Rb7
{[%clk 0:00:06.9]} 71. Rg1 {[%clk 0:00:07.1]} 71... Rb4+ {[%clk 0:00:07]} 72.
Kg5 {[%clk 0:00:07.2]} 72... Rb5+ {[%clk 0:00:07.5]} 73. Kf6 {[%clk 0:00:07.7]}
73... Rb6+ {[%clk 0:00:07.9]} 74. Ke7 {[%clk 0:00:08]} 74... Kb7 {[%clk
0:00:08.4]} 75. Kd7 {[%clk 0:00:08.2]} 75... Rb5 {[%clk 0:00:08.6]} 76. Kd6
{[%clk 0:00:08.5]} 76... Rb6+ {[%clk 0:00:08.9]} 77. Kc5 {[%clk 0:00:09.3]}
77... Rc6+ {[%clk 0:00:09.4]} 78. Kd5 {[%clk 0:00:10.1]} 78... Rb6 {[%clk
0:00:09.9]} 79. Rg7+ {[%clk 0:00:10.6]} 79... Ka6 {[%clk 0:00:10.3]} 80. Kc5
{[%clk 0:00:11.5]} 80... Rb5+ {[%clk 0:00:10.8]} 81. Kc4 {[%clk 0:00:12.2]}
81... Rb6 {[%clk 0:00:11.3]} 82. Rg8 {[%clk 0:00:12.9]} 82... Rc6+ {[%clk
0:00:11.6]} 83. Kd5 {[%clk 0:00:13.6]} 83... Rb6 {[%clk 0:00:11.6]} 84. Kc5
{[%clk 0:00:14.4]} 84... Rh6 {[%clk 0:00:11.5]} 85. Ra8+ {[%clk 0:00:14.1]}
85... Kb7 {[%clk 0:00:11.9]} 86. Rf8 {[%clk 0:00:15]} 86... Rh5+ {[%clk
0:00:12.1]} 87. Kd6 {[%clk 0:00:15.7]} 87... Rh6+ {[%clk 0:00:12.3]} 88. Kd7
{[%clk 0:00:16.4]} 88... Rh7+ {[%clk 0:00:12.7]} 89. Ke6 {[%clk 0:00:17.1]}
89... Rh6+ {[%clk 0:00:12.9]} 90. Ke5 {[%clk 0:00:17.8]} 90... Rh5+ {[%clk
0:00:13.2]} 91. Rf5 {[%clk 0:00:16.9]} 91... Rxf5+ {[%clk 0:00:13.2]} 92. Kxf5
{[%clk 0:00:17.8]} 1/2-1/2

[Event "Early-Titled-Tuesday-Blitz-March-05-2024"]
[Site "Chess.com"]
[Date "2024.03.05"]
[Round "5"]
[White "Massakru"]
[Black "klercaku"]
[Result "1/2-1/2"]
[WhiteElo "2378"]
[BlackElo "2191"]
[TimeControl "180+1"]
[EndTime "9:00:58 PST"]
[Termination "Game drawn by 50-move rule"]

1. e4 {[%clk 0:02:46.2]} 1... e5 {[%clk 0:02:58.2]} 2. Nf3 {[%clk 0:02:46]} 2...
Nc6 {[%clk 0:02:58.6]} 3. Bb5 {[%clk 0:02:45.7]} 3... a6 {[%clk 0:02:58.8]} 4.
Ba4 {[%clk 0:02:45.6]} 4... Nf6 {[%clk 0:02:59.4]} 5. d4 {[%clk 0:02:46]} 5...
b5 {[%clk 0:02:53.9]} 6. dxe5 {[%clk 0:02:42.9]} 6... Nxe4 {[%clk 0:02:44.2]} 7.
Bb3 {[%clk 0:02:41]} 7... Nc5 {[%clk 0:02:43.6]} 8. Bd5 {[%clk 0:02:39.6]} 8...
Be7 {[%clk 0:02:39.6]} 9. O-O {[%clk 0:02:37.5]} 9... O-O {[%clk 0:02:36.6]} 10.
Re1 {[%clk 0:02:24.4]} 10... Rb8 {[%clk 0:02:29.1]} 11. Nc3 {[%clk 0:02:21]}
11... h6 {[%clk 0:01:45.5]} 12. Ne4 {[%clk 0:02:17.2]} 12... Nb4 {[%clk
0:01:41.9]} 13. Nxc5 {[%clk 0:02:06.9]} 13... Bxc5 {[%clk 0:01:32.9]} 14. Bb3
{[%clk 0:02:05.4]} 14... Bb7 {[%clk 0:01:26.6]} 15. a3 {[%clk 0:02:02.7]} 15...
Nc6 {[%clk 0:01:24.2]} 16. Be3 {[%clk 0:02:00.2]} 16... Bxe3 {[%clk 0:01:22.7]}
17. Rxe3 {[%clk 0:02:01.1]} 17... Qe7 {[%clk 0:01:17.1]} 18. Qe1 {[%clk
0:01:57.1]} 18... Na5 {[%clk 0:01:04.4]} 19. Ba2 {[%clk 0:01:54.3]} 19... Nc4
{[%clk 0:01:00.3]} 20. Bxc4 {[%clk 0:01:52.2]} 20... bxc4 {[%clk 0:01:01.2]} 21.
Rd1 {[%clk 0:01:49.4]} 21... Bxf3 {[%clk 0:00:53.8]} 22. Rxf3 {[%clk 0:01:49.2]}
22... Rxb2 {[%clk 0:00:53.5]} 23. Qc3 {[%clk 0:01:45.4]} 23... Rfb8 {[%clk
0:00:43.5]} 24. h3 {[%clk 0:01:39.2]} 24... Rb1 {[%clk 0:00:29.4]} 25. Rxb1
{[%clk 0:01:38.2]} 25... Rxb1+ {[%clk 0:00:29.5]} 26. Kh2 {[%clk 0:01:38.9]}
26... d6 {[%clk 0:00:29.4]} 27. exd6 {[%clk 0:01:34.5]} 27... Qxd6+ {[%clk
0:00:30.3]} 28. Rg3 {[%clk 0:01:34.5]} 28... g6 {[%clk 0:00:23.6]} 29. Qxc4
{[%clk 0:01:30.5]} 29... Kg7 {[%clk 0:00:21.7]} 30. Qc3+ {[%clk 0:01:29.6]}
30... Kh7 {[%clk 0:00:21.2]} 31. Qc4 {[%clk 0:01:28.5]} 31... Kg7 {[%clk
0:00:17.2]} 32. c3 {[%clk 0:01:27.7]} 32... c5 {[%clk 0:00:15.3]} 33. Qd3 {[%clk
0:01:23]} 33... Qxd3 {[%clk 0:00:12.3]} 34. Rxd3 {[%clk 0:01:23.9]} 34... Rb3
{[%clk 0:00:12.5]} 35. a4 {[%clk 0:01:22.7]} 35... Ra3 {[%clk 0:00:12.8]} 36.
Rd6 {[%clk 0:01:20.2]} 36... Rxa4 {[%clk 0:00:12.5]} 37. Rc6 {[%clk 0:01:20.7]}
37... Rc4 {[%clk 0:00:09.3]} 38. Rxa6 {[%clk 0:01:20.8]} 38... Rxc3 {[%clk
0:00:10]} 39. Rc6 {[%clk 0:01:21.5]} 39... Rc2 {[%clk 0:00:10.4]} 40. Kg3 {[%clk
0:01:21.4]} 40... c4 {[%clk 0:00:11]} 41. h4 {[%clk 0:01:20.6]} 41... h5 {[%clk
0:00:11.2]} 42. f3 {[%clk 0:01:20.1]} 42... Rc1 {[%clk 0:00:11.6]} 43. Kh2
{[%clk 0:01:18.8]} 43... c3 {[%clk 0:00:11.6]} 44. Kg3 {[%clk 0:01:18.2]} 44...
c2 {[%clk 0:00:09.4]} 45. Kh2 {[%clk 0:01:18.4]} 45... Kh6 {[%clk 0:00:09.9]}
46. Kg3 {[%clk 0:01:16.2]} 46... Kg7 {[%clk 0:00:10.2]} 47. Kh2 {[%clk
0:01:16.4]} 47... Kf8 {[%clk 0:00:10.7]} 48. Kg3 {[%clk 0:01:16]} 48... Ke7
{[%clk 0:00:11.1]} 49. Kh2 {[%clk 0:01:16.2]} 49... Kd7 {[%clk 0:00:11.2]} 50.
Rc3 {[%clk 0:01:16.2]} 50... Kd6 {[%clk 0:00:11.6]} 51. Kg3 {[%clk 0:01:16.5]}
51... Kd5 {[%clk 0:00:12.2]} 52. Rc8 {[%clk 0:01:16.5]} 52... Kd4 {[%clk
0:00:10.7]} 53. Kh2 {[%clk 0:01:16.3]} 53... Kd3 {[%clk 0:00:10.9]} 54. Rd8+
{[%clk 0:01:16.6]} 54... Ke2 {[%clk 0:00:09.8]} 55. Re8+ {[%clk 0:01:16.5]}
55... Kf2 {[%clk 0:00:09.1]} 56. Rc8 {[%clk 0:01:16.5]} 56... f6 {[%clk
0:00:07]} 57. Rc6 {[%clk 0:01:14.9]} 57... g5 {[%clk 0:00:05.2]} 58. hxg5 {[%clk
0:01:12.1]} 58... fxg5 {[%clk 0:00:06.1]} 59. Rc5 {[%clk 0:01:11.5]} 59... g4
{[%clk 0:00:05.8]} 60. fxg4 {[%clk 0:01:11.2]} 60... hxg4 {[%clk 0:00:04.9]} 61.
Rf5+ {[%clk 0:01:11.4]} 61... Ke3 {[%clk 0:00:05.3]} 62. Rc5 {[%clk 0:01:09.7]}
62... Kd4 {[%clk 0:00:05.1]} 63. Rc8 {[%clk 0:01:09.5]} 63... Kd3 {[%clk
0:00:04.2]} 64. Rd8+ {[%clk 0:01:08.8]} 64... Ke2 {[%clk 0:00:03.8]} 65. Rc8
{[%clk 0:01:08.4]} 65... Kd3 {[%clk 0:00:04]} 66. Rd8+ {[%clk 0:01:08.6]} 66...
Ke4 {[%clk 0:00:04.7]} 67. Rc8 {[%clk 0:01:08.2]} 67... Kd5 {[%clk 0:00:05.2]}
68. Kg3 {[%clk 0:01:07.7]} 68... Kd6 {[%clk 0:00:03.6]} 69. Kxg4 {[%clk
0:01:07.6]} 69... Kd7 {[%clk 0:00:04]} 70. Rc3 {[%clk 0:01:06.7]} 70... Kd6
{[%clk 0:00:04.1]} 71. g3 {[%clk 0:01:07]} 71... Kd5 {[%clk 0:00:04.3]} 72. Kg5
{[%clk 0:01:06.9]} 72... Kd4 {[%clk 0:00:04.5]} 73. Rc8 {[%clk 0:01:07.3]} 73...
Kd5 {[%clk 0:00:04.9]} 74. g4 {[%clk 0:01:07.1]} 74... Kd6 {[%clk 0:00:05.3]}
75. Rc3 {[%clk 0:01:06.3]} 75... Kd5 {[%clk 0:00:04.8]} 76. Kg6 {[%clk
0:01:04.4]} 76... Rg1 {[%clk 0:00:02.9]} 77. Rxc2 {[%clk 0:01:03.2]} 77... Rxg4+
{[%clk 0:00:03]} 78. Kf5 {[%clk 0:01:03.8]} 78... Rc4 {[%clk 0:00:03.5]} 79.
Rd2+ {[%clk 0:01:03.6]} 79... Rd4 {[%clk 0:00:03.8]} 80. Ra2 {[%clk 0:01:03.6]}
80... Rc4 {[%clk 0:00:04.1]} 81. Ra8 {[%clk 0:01:01.4]} 81... Rc6 {[%clk
0:00:04.1]} 82. Rd8+ {[%clk 0:01:00.1]} 82... Rd6 {[%clk 0:00:04.8]} 83. Ra8
{[%clk 0:01:00.2]} 83... Rc6 {[%clk 0:00:05.3]} 84. Kf4 {[%clk 0:00:59.3]} 84...
Rc5 {[%clk 0:00:06.2]} 85. Ke3 {[%clk 0:00:59.5]} 85... Rc4 {[%clk 0:00:06.5]}
86. Kd3 {[%clk 0:00:59.8]} 86... Rd4+ {[%clk 0:00:07.2]} 87. Kc3 {[%clk
0:01:00.2]} 87... Rc4+ {[%clk 0:00:07.4]} 88. Kd2 {[%clk 0:01:00.1]} 88... Rd4+
{[%clk 0:00:07.7]} 89. Ke3 {[%clk 0:01:00.5]} 89... Re4+ {[%clk 0:00:08.3]} 90.
Kf3 {[%clk 0:01:01.1]} 90... Re5 {[%clk 0:00:09]} 91. Ra6 {[%clk 0:01:00.2]}
91... Re6 {[%clk 0:00:09]} 92. Ra5+ {[%clk 0:01:00.2]} 92... Kd6 {[%clk
0:00:09.6]} 93. Kf4 {[%clk 0:01:00.5]} 93... Ke7 {[%clk 0:00:09.6]} 94. Kf5
{[%clk 0:01:00.3]} 94... Rd6 {[%clk 0:00:09.5]} 95. Ke5 {[%clk 0:00:59.2]} 95...
Rd7 {[%clk 0:00:09.5]} 96. Ra6 {[%clk 0:00:58.9]} 96... Rc7 {[%clk 0:00:09.6]}
97. Rb6 {[%clk 0:00:58.2]} 97... Rd7 {[%clk 0:00:09.5]} 98. Rh6 {[%clk
0:00:57.3]} 98... Kd8 {[%clk 0:00:08.5]} 99. Ke6 {[%clk 0:00:56.7]} 99... Kc7
{[%clk 0:00:08.2]} 100. Rh3 {[%clk 0:00:56.5]} 100... Rd6+ {[%clk 0:00:08.2]}
101. Ke7 {[%clk 0:00:56.4]} 101... Rd7+ {[%clk 0:00:08.6]} 102. Ke6 {[%clk
0:00:56.8]} 102... Rd6+ {[%clk 0:00:09.1]} 103. Ke5 {[%clk 0:00:57.3]} 103...
Rc6 {[%clk 0:00:09.4]} 104. Kd5 {[%clk 0:00:57]} 104... Rd6+ {[%clk 0:00:08.6]}
105. Kc5 {[%clk 0:00:57]} 105... Rc6+ {[%clk 0:00:09.1]} 106. Kb5 {[%clk
0:00:57.6]} 106... Rb6+ {[%clk 0:00:09.7]} 107. Ka5 {[%clk 0:00:58.2]} 107...
Rd6 {[%clk 0:00:10.3]} 108. Rh4 {[%clk 0:00:56.9]} 108... Rd5+ {[%clk
0:00:10.2]} 109. Ka6 {[%clk 0:00:56.9]} 109... Rd6+ {[%clk 0:00:10.7]} 110. Ka7
{[%clk 0:00:57.4]} 110... Kc6 {[%clk 0:00:10.8]} 111. Ka6 {[%clk 0:00:56.4]}
111... Kc5+ {[%clk 0:00:05.9]} 112. Ka5 {[%clk 0:00:56.5]} 112... Kc6 {[%clk
0:00:06.3]} 113. Rh7 {[%clk 0:00:54.1]} 113... Rd5+ {[%clk 0:00:03.3]} 114. Kb4
{[%clk 0:00:54.4]} 114... Rd4+ {[%clk 0:00:03.6]} 115. Kc3 {[%clk 0:00:54.4]}
115... Rd6 {[%clk 0:00:04.5]} 116. Kc4 {[%clk 0:00:54.4]} 116... Rd7 {[%clk
0:00:04.6]} 117. Rh6+ {[%clk 0:00:54.5]} 117... Rd6 {[%clk 0:00:05.1]} 118. Rh1
{[%clk 0:00:52.6]} 118... Rd7 {[%clk 0:00:05.2]} 119. Rh2 {[%clk 0:00:51.4]}
119... Rd6 {[%clk 0:00:05.7]} 120. Ra2 {[%clk 0:00:51.5]} 120... Rd7 {[%clk
0:00:06]} 121. Ra6+ {[%clk 0:00:51.3]} 121... Kb7 {[%clk 0:00:06.6]} 122. Rh6
{[%clk 0:00:51.5]} 122... Rc7+ {[%clk 0:00:07.3]} 123. Kb5 {[%clk 0:00:51.8]}
123... Rd7 {[%clk 0:00:07.3]} 124. Rh5 {[%clk 0:00:51.1]} 124... Kc7 {[%clk
0:00:07.7]} 125. Rg5 {[%clk 0:00:50.7]} 125... Kd6 {[%clk 0:00:07.4]} 126. Kc4
{[%clk 0:00:50.4]} 126... Ke7 {[%clk 0:00:07.7]} 127. Kc5 {[%clk 0:00:50.3]}
127... Kf6 {[%clk 0:00:07.7]} 1/2-1/2

[Event "Early-Titled-Tuesday-Blitz-March-05-2024"]
[Site "Chess.com"]
[Date "2024.03.05"]
[Round "6"]
[White "abc_xyz4744"]
[Black "volodja49"]
[Result "0-1"]
[WhiteElo "2426"]
[BlackElo "2603"]
[TimeControl "180+1"]
[EndTime "9:02:41 PST"]
[Termination "volodja49 won by resignation"]

1. e4 {[%clk 0:03:00.9]} 1... e6 {[%clk 0:03:00.2]} 2. d4 {[%clk 0:02:59.5]}
2... d5 {[%clk 0:03:01.1]} 3. Nc3 {[%clk 0:03:00]} 3... dxe4 {[%clk 0:03:01.4]}
4. Nxe4 {[%clk 0:03:00.9]} 4... Nd7 {[%clk 0:03:01.6]} 5. Nf3 {[%clk 0:02:56.9]}
5... Ngf6 {[%clk 0:03:02.5]} 6. Bd3 {[%clk 0:02:57]} 6... c5 {[%clk 0:03:02.1]}
7. O-O {[%clk 0:02:49.3]} 7... cxd4 {[%clk 0:03:01.2]} 8. Nxd4 {[%clk
0:02:50.2]} 8... Nxe4 {[%clk 0:02:59.6]} 9. Bxe4 {[%clk 0:02:50.3]} 9... Be7
{[%clk 0:02:59.1]} 10. Bg5 {[%clk 0:02:50.1]} 10... Bxg5 {[%clk 0:02:57.9]} 0-1

[Event "Early-Titled-Tuesday-Blitz-March-05-2024"]
[Site "Chess.com"]
[Date "2024.03.05"]
[Round "6"]
[White "LiadCuba"]
[Black "alvarorodriguezavila"]
[Result "1-0"]
[WhiteElo "2515"]
[BlackElo "2341"]
[TimeControl "180+1"]
[EndTime "9:04:37 PST"]
[Termination "LiadCuba won by resignation"]

1. d4 {[%clk 0:02:58.3]} 1... Nf6 {[%clk 0:02:59.6]} 2. c4 {[%clk 0:02:58.3]}
2... Nc6 {[%clk 0:03:00]} 3. d5 {[%clk 0:02:55.8]} 3... Ne5 {[%clk 0:02:59.9]}
4. e3 {[%clk 0:02:53]} 4... e6 {[%clk 0:02:59.7]} 5. Nc3 {[%clk 0:02:51.4]} 5...
Bb4 {[%clk 0:03:00]} 6. Bd2 {[%clk 0:02:36.9]} 6... O-O {[%clk 0:02:59.3]} 7. a3
{[%clk 0:02:31.3]} 7... Bxc3 {[%clk 0:02:45.5]} 8. Bxc3 {[%clk 0:02:32.2]} 8...
d6 {[%clk 0:02:45.8]} 9. Bxe5 {[%clk 0:02:24.1]} 9... dxe5 {[%clk 0:02:45.9]}
10. Nf3 {[%clk 0:02:24.3]} 10... exd5 {[%clk 0:02:44.6]} 11. Nxe5 {[%clk
0:02:22.9]} 11... Qe7 {[%clk 0:02:36.4]} 12. Nf3 {[%clk 0:02:22.1]} 12... dxc4
{[%clk 0:02:32.5]} 13. Bxc4 {[%clk 0:02:23]} 13... Rd8 {[%clk 0:02:32.3]} 14.
Qc2 {[%clk 0:02:14.4]} 14... Bg4 {[%clk 0:02:29]} 15. Ng5 {[%clk 0:02:06.6]}
15... Bh5 {[%clk 0:02:23.9]} 16. O-O {[%clk 0:01:59.6]} 16... h6 {[%clk
0:02:23.6]} 17. Nh3 {[%clk 0:01:59.8]} 17... Bg6 {[%clk 0:02:14.5]} 18. Qxg6
{[%clk 0:01:59.2]} 1-0

[Event "Early-Titled-Tuesday-Blitz-March-05-2024"]
[Site "Chess.com"]
[Date "2024.03.05"]
[Round "6"]
[White "guillembaches"]
[Black "Hurghada"]
[Result "1-0"]
[WhiteElo "2528"]
[BlackElo "2383"]
[TimeControl "180+1"]
[EndTime "9:04:42 PST"]
[Termination "guillembaches won by resignation"]

1. Nf3 {[%clk 0:03:00.9]} 1... d5 {[%clk 0:02:57.6]} 2. d4 {[%clk 0:03:01]} 2...
e6 {[%clk 0:02:56.8]} 3. Bg5 {[%clk 0:02:59]} 3... Be7 {[%clk 0:02:56.1]} 4.
Bxe7 {[%clk 0:02:58.8]} 4... Qxe7 {[%clk 0:02:56.5]} 5. Nbd2 {[%clk 0:02:59.3]}
5... Nf6 {[%clk 0:02:56.6]} 6. e3 {[%clk 0:02:59.5]} 6... Nbd7 {[%clk
0:02:56.7]} 7. Bd3 {[%clk 0:02:59.3]} 7... c6 {[%clk 0:02:55.9]} 8. O-O {[%clk
0:02:55.5]} 8... O-O {[%clk 0:02:55.3]} 9. Ne5 {[%clk 0:02:54.1]} 9... Nxe5
{[%clk 0:02:55.4]} 10. dxe5 {[%clk 0:02:54.6]} 10... Nd7 {[%clk 0:02:55.8]} 11.
f4 {[%clk 0:02:54.8]} 11... f6 {[%clk 0:02:56]} 12. exf6 {[%clk 0:02:54.3]}
12... Nxf6 {[%clk 0:02:54.1]} 13. Nf3 {[%clk 0:02:52.3]} 13... Nd7 {[%clk
0:02:54.1]} 14. c4 {[%clk 0:02:33.6]} 14... Nc5 {[%clk 0:02:43.3]} 15. Ne5
{[%clk 0:02:30]} 15... Nd7 {[%clk 0:02:29]} 16. Qh5 {[%clk 0:02:26.8]} 16... Nf6
{[%clk 0:02:24.3]} 17. Qh4 {[%clk 0:02:20.7]} 17... g6 {[%clk 0:02:01.2]} 18.
Rf3 {[%clk 0:02:07.5]} 18... Nd7 {[%clk 0:01:55.6]} 19. Qxe7 {[%clk 0:02:04.1]}
1-0

[Event "Early-Titled-Tuesday-Blitz-March-05-2024"]
[Site "Chess.com"]
[Date "2024.03.05"]
[Round "6"]
[White "banane_verte"]
[Black "Shivananda1964"]
[Result "0-1"]
[WhiteElo "2493"]
[BlackElo "2353"]
[TimeControl "180+1"]
[EndTime "9:04:42 PST"]
[Termination "Shivananda1964 won by resignation"]

1. e4 {[%clk 0:03:00.9]} 1... Nc6 {[%clk 0:02:55]} 2. d4 {[%clk 0:02:40.4]} 2...
e5 {[%clk 0:02:54]} 3. dxe5 {[%clk 0:02:38.9]} 3... Nxe5 {[%clk 0:02:53.6]} 4.
Nf3 {[%clk 0:02:39.8]} 4... Qf6 {[%clk 0:02:53.2]} 5. Nxe5 {[%clk 0:02:38]} 5...
Qxe5 {[%clk 0:02:53.2]} 6. Qd5 {[%clk 0:02:35]} 6... Qxd5 {[%clk 0:02:50.5]} 7.
exd5 {[%clk 0:02:35.9]} 7... Bc5 {[%clk 0:02:49.2]} 8. Bd3 {[%clk 0:02:33.8]}
8... Nf6 {[%clk 0:02:48.5]} 9. Nc3 {[%clk 0:02:30.8]} 9... O-O {[%clk
0:02:44.5]} 10. O-O {[%clk 0:02:28]} 10... d6 {[%clk 0:02:44.2]} 11. Bg5 {[%clk
0:02:25.9]} 11... Ng4 {[%clk 0:02:42.1]} 12. Ne4 {[%clk 0:02:23.3]} 12... Bb6
{[%clk 0:02:38.6]} 13. c4 {[%clk 0:02:19.6]} 13... h6 {[%clk 0:02:33.9]} 14. Bh4
{[%clk 0:02:15]} 14... f5 {[%clk 0:02:22.4]} 15. Nc3 {[%clk 0:01:57.1]} 15... g5
{[%clk 0:02:20.5]} 16. Bg3 {[%clk 0:01:58]} 16... f4 {[%clk 0:02:20.3]} 17. h3
{[%clk 0:01:58.7]} 17... Ne5 {[%clk 0:02:12.6]} 18. c5 {[%clk 0:01:48.2]} 18...
Bxc5 {[%clk 0:02:08.3]} 0-1

[Event "Early-Titled-Tuesday-Blitz-March-05-2024"]
[Site "Chess.com"]
[Date "2024.03.05"]
[Round "6"]
[White "Bekkedahl"]
[Black "diamonds13"]
[Result "1-0"]
[WhiteElo "2202"]
[BlackElo "2337"]
[TimeControl "180+1"]
[EndTime "9:04:58 PST"]
[Termination "Bekkedahl won by resignation"]

1. e4 {[%clk 0:03:00.9]} 1... c5 {[%clk 0:03:00.1]} 2. Nf3 {[%clk 0:03:00.3]}
2... e6 {[%clk 0:03:00.3]} 3. g3 {[%clk 0:03:00]} 3... Nc6 {[%clk 0:03:00]} 4.
Bg2 {[%clk 0:02:59.9]} 4... d5 {[%clk 0:03:00.7]} 5. exd5 {[%clk 0:02:59]} 5...
exd5 {[%clk 0:03:00.9]} 6. O-O {[%clk 0:02:59.7]} 6... Nf6 {[%clk 0:03:00.8]} 7.
Re1+ {[%clk 0:02:56.8]} 7... Be7 {[%clk 0:03:01.4]} 8. b3 {[%clk 0:02:53.4]}
8... Bg4 {[%clk 0:03:00.7]} 9. h3 {[%clk 0:02:52.5]} 9... Bh5 {[%clk 0:03:00]}
10. Bb2 {[%clk 0:02:51.7]} 10... O-O {[%clk 0:02:58.9]} 11. d3 {[%clk
0:02:51.6]} 11... Qd7 {[%clk 0:02:58.9]} 12. Nc3 {[%clk 0:02:50.2]} 12... d4
{[%clk 0:02:56.3]} 13. Ne4 {[%clk 0:02:49.5]} 13... Ne5 {[%clk 0:02:55.5]} 14.
Nxe5 {[%clk 0:02:43.3]} 14... Qf5 {[%clk 0:02:44.4]} 15. Nxf6+ {[%clk
0:02:37.6]} 15... Bxf6 {[%clk 0:02:44.2]} 16. g4 {[%clk 0:02:35.6]} 16... Qf4
{[%clk 0:02:42.9]} 17. Nd7 {[%clk 0:02:29]} 17... Bh4 {[%clk 0:02:40.7]} 18.
Nxf8 {[%clk 0:02:18.8]} 18... Bxf2+ {[%clk 0:02:31.9]} 19. Kh1 {[%clk 0:02:19]}
19... Bxe1 {[%clk 0:02:28.1]} 20. Qxe1 {[%clk 0:02:14.7]} 20... Bxg4 {[%clk
0:02:28.2]} 21. hxg4 {[%clk 0:02:11.2]} 21... Rxf8 {[%clk 0:02:28.1]} 22. Qe4
{[%clk 0:02:01.2]} 22... Qg3 {[%clk 0:02:26.6]} 23. Rf1 {[%clk 0:01:52.3]} 23...
Qh4+ {[%clk 0:02:16.3]} 24. Kg1 {[%clk 0:01:52]} 24... b6 {[%clk 0:02:09.6]} 25.
Bc1 {[%clk 0:01:49.7]} 1-0